[Event "*** Titled Tuesday 3|2 Blitz"]
[Site "Chess.com"]
[Date "2015.10.06"]
[Round "5"]
[White "ChessTrener"]
[Black "kikydu96"]
[Result "1-0"]
[WhiteElo "2479"]
[BlackElo "2277"]
[TimeControl "180+2"]
[EndTime "12:03:10 PDT"]
[Termination "ChessTrener won by resignation"]

1. d4 {[%clk 0:02:56.6]} 1... d5 {[%clk 0:03:00.6]} 2. Nf3 {[%clk 0:02:57.8]}
2... Nf6 {[%clk 0:03:01.1]} 3. c3 {[%clk 0:02:58.9]} 3... c6 {[%clk 0:03:00.6]}
4. Bg5 {[%clk 0:02:59.7]} 4... Ne4 {[%clk 0:03:00.7]} 5. Bf4 {[%clk 0:03:00.9]}
5... g6 {[%clk 0:03:01.5]} 6. Nbd2 {[%clk 0:03:01.4]} 6... Bg7 {[%clk
0:03:00.5]} 7. e3 {[%clk 0:02:57.7]} 7... O-O {[%clk 0:03:01]} 8. Nxe4 {[%clk
0:02:58.4]} 8... dxe4 {[%clk 0:03:01.8]} 9. Nd2 {[%clk 0:03:00.3]} 9... f5
{[%clk 0:03:02]} 10. Qb3+ {[%clk 0:03:00.7]} 10... Kh8 {[%clk 0:03:01.8]} 11. h4
{[%clk 0:03:01.2]} 11... e6 {[%clk 0:02:57.8]} 12. Bc4 {[%clk 0:02:58.6]} 12...
Qe7 {[%clk 0:02:49.8]} 13. Bg5 {[%clk 0:02:56.8]} 13... Qf7 {[%clk 0:02:49.5]}
14. h5 {[%clk 0:02:57.6]} 14... b5 {[%clk 0:02:47]} 15. Be2 {[%clk 0:02:58.2]}
15... Nd7 {[%clk 0:02:37.5]} 16. O-O-O {[%clk 0:02:53.5]} 16... Nb6 {[%clk
0:02:36.4]} 17. hxg6 {[%clk 0:02:52.4]} 17... Qxg6 {[%clk 0:02:36.8]} 18. Bf4
{[%clk 0:02:45.9]} 18... Nd5 {[%clk 0:02:24.5]} 19. g3 {[%clk 0:02:44.4]} 19...
a5 {[%clk 0:02:14.5]} 20. Bh5 {[%clk 0:02:43.7]} 20... Qf6 {[%clk 0:02:15.4]}
21. Be5 {[%clk 0:02:44.7]} 21... Qe7 {[%clk 0:02:17]} 22. Bg6 {[%clk 0:02:44.7]}
22... Nf6 {[%clk 0:01:46.6]} 23. Bxf6 {[%clk 0:02:40.6]} 23... Rxf6 {[%clk
0:01:47.3]} 24. Bxh7 {[%clk 0:02:35.8]} 24... Bh6 {[%clk 0:01:48.2]} 25. g4
{[%clk 0:02:29.2]} 25... Qxh7 {[%clk 0:01:00.8]} 26. g5 {[%clk 0:02:28.9]} 26...
Rg6 {[%clk 0:00:57.5]} 27. gxh6 {[%clk 0:02:21.6]} 27... Rxh6 {[%clk 0:00:58.4]}
28. Rxh6 {[%clk 0:02:19.1]} 28... Qxh6 {[%clk 0:00:59.5]} 29. Rg1 {[%clk
0:02:20.6]} 29... Qh5 {[%clk 0:00:50.1]} 30. Qa3 {[%clk 0:02:18.2]} 30... b4
{[%clk 0:00:50.7]} 31. cxb4 {[%clk 0:02:18.3]} 31... Qh2 {[%clk 0:00:47.1]} 32.
Rd1 {[%clk 0:02:04.7]} 32... Qd6 {[%clk 0:00:39.6]} 33. Nc4 {[%clk 0:01:42.5]}
33... Qxb4 {[%clk 0:00:37.6]} 34. Qxb4 {[%clk 0:01:43.7]} 34... axb4 {[%clk
0:00:38.8]} 35. Kb1 {[%clk 0:01:45.4]} 35... Ba6 {[%clk 0:00:37]} 36. Ne5 {[%clk
0:01:46.5]} 36... Rc8 {[%clk 0:00:23.2]} 37. Rc1 {[%clk 0:01:43.8]} 37... Bd3+
{[%clk 0:00:21.9]} 38. Ka1 {[%clk 0:01:39.3]} 38... Kg7 {[%clk 0:00:19.9]} 39.
b3 {[%clk 0:01:38.2]} 39... Rh8 {[%clk 0:00:20.7]} 40. Nxc6 {[%clk 0:01:25.3]}
40... Rh2 {[%clk 0:00:21.9]} 41. Nxb4 {[%clk 0:01:19.4]} 41... Rxf2 {[%clk
0:00:23.3]} 42. d5 {[%clk 0:01:20.9]} 42... exd5 {[%clk 0:00:20.9]} 43. Nxd5
{[%clk 0:01:21.6]} 43... Re2 {[%clk 0:00:21.7]} 44. a4 {[%clk 0:01:18.4]} 44...
Kf7 {[%clk 0:00:22.1]} 45. b4 {[%clk 0:01:18.9]} 45... Bc2 {[%clk 0:00:18.3]}
46. Nf4 {[%clk 0:01:17.3]} 46... Rxe3 {[%clk 0:00:17.6]} 47. Rxc2 {[%clk
0:01:18.2]} 47... Ra3+ {[%clk 0:00:19.2]} 48. Kb2 {[%clk 0:01:19.4]} 48... Rxa4
{[%clk 0:00:20.5]} 49. Kb3 {[%clk 0:01:20.9]} 49... Ra1 {[%clk 0:00:21.5]} 50.
b5 {[%clk 0:01:20.5]} 50... Rf1 {[%clk 0:00:22.3]} 51. b6 {[%clk 0:01:20]} 51...
Rxf4 {[%clk 0:00:13.3]} 52. b7 {[%clk 0:01:20.7]} 52... Rf3+ {[%clk 0:00:14.8]}
53. Kb2 {[%clk 0:01:18.7]} 1-0

[Event "*** Titled Tuesday 3|2 Blitz"]
[Site "Chess.com"]
[Date "2015.10.06"]
[Round "5"]
[White "A-Fier"]
[Black "Zvonokchess"]
[Result "0-1"]
[WhiteElo "2489"]
[BlackElo "2560"]
[TimeControl "180+2"]
[EndTime "12:04:08 PDT"]
[Termination "Zvonokchess won by resignation"]

1. b3 {[%clk 0:03:01.9]} 1... e5 {[%clk 0:03:00.5]} 2. Bb2 {[%clk 0:03:03.8]}
2... Nc6 {[%clk 0:03:01.6]} 3. e3 {[%clk 0:03:05.3]} 3... Nf6 {[%clk 0:03:02.8]}
4. Bb5 {[%clk 0:03:05.9]} 4... Bd6 {[%clk 0:03:03]} 5. Ne2 {[%clk 0:03:06.7]}
5... Ne7 {[%clk 0:03:01.9]} 6. Ng3 {[%clk 0:03:07.4]} 6... c6 {[%clk 0:03:02.1]}
7. Be2 {[%clk 0:03:08.3]} 7... Bc7 {[%clk 0:03:03.1]} 8. c4 {[%clk 0:03:08.3]}
8... d5 {[%clk 0:03:01]} 9. d4 {[%clk 0:03:09.2]} 9... e4 {[%clk 0:03:01.6]} 10.
Nc3 {[%clk 0:03:09.4]} 10... O-O {[%clk 0:02:41.8]} 11. Qc2 {[%clk 0:03:09.7]}
11... a6 {[%clk 0:01:54.5]} 12. O-O-O {[%clk 0:03:08]} 12... b5 {[%clk
0:01:55.1]} 13. c5 {[%clk 0:03:08.4]} 13... a5 {[%clk 0:01:54.4]} 14. Kb1 {[%clk
0:03:05.2]} 14... Ba6 {[%clk 0:01:55.3]} 15. f3 {[%clk 0:03:03.4]} 15... Bxg3
{[%clk 0:01:46.7]} 16. hxg3 {[%clk 0:03:04]} 16... Nf5 {[%clk 0:01:47.9]} 17.
fxe4 {[%clk 0:02:48.1]} 17... Nxe3 {[%clk 0:01:48.1]} 18. Qd2 {[%clk 0:02:49.2]}
18... Nxd1 {[%clk 0:01:46.1]} 19. Bxd1 {[%clk 0:02:50.5]} 19... b4 {[%clk
0:01:46.7]} 20. Na4 {[%clk 0:02:43.7]} 20... Nxe4 {[%clk 0:01:47.6]} 21. Qf4
{[%clk 0:02:44.8]} 21... Qf6 {[%clk 0:01:37.4]} 22. Bc2 {[%clk 0:02:45.1]} 22...
Qxf4 {[%clk 0:01:34.3]} 23. gxf4 {[%clk 0:02:47]} 23... Rae8 {[%clk 0:01:35.3]}
24. Nb6 {[%clk 0:02:47.3]} 24... Re7 {[%clk 0:01:20]} 25. a3 {[%clk 0:02:40.1]}
25... bxa3 {[%clk 0:01:20.9]} 26. Bxa3 {[%clk 0:02:40.6]} 26... Rfe8 {[%clk
0:01:22]} 27. Bc1 {[%clk 0:02:40.1]} 27... h6 {[%clk 0:01:22.8]} 28. Kb2 {[%clk
0:02:41.1]} 28... Nf6 {[%clk 0:01:22.5]} 29. Bd1 {[%clk 0:02:32.9]} 29... Be2
{[%clk 0:01:15]} 30. Bc2 {[%clk 0:02:28.5]} 30... Bb5 {[%clk 0:01:16]} 31. Bd1
{[%clk 0:02:29.5]} 31... Nd7 {[%clk 0:01:03]} 32. Nxd7 {[%clk 0:02:29.6]} 32...
Rxd7 {[%clk 0:01:04.3]} 33. Bd2 {[%clk 0:02:30.8]} 33... Re4 {[%clk 0:00:57]}
34. Kc3 {[%clk 0:02:21.2]} 34... Rde7 {[%clk 0:00:35.3]} 35. Bf3 {[%clk
0:02:21.4]} 35... Re3+ {[%clk 0:00:36.5]} 36. Bxe3 {[%clk 0:02:22.4]} 36...
Rxe3+ {[%clk 0:00:38.4]} 37. Kb2 {[%clk 0:02:16]} 37... a4 {[%clk 0:00:38.4]}
38. bxa4 {[%clk 0:02:16.5]} 38... Bxa4 {[%clk 0:00:40.3]} 39. Ra1 {[%clk
0:02:16.7]} 39... Bb5 {[%clk 0:00:41.3]} 40. Ra8+ {[%clk 0:02:16.6]} 40... Kh7
{[%clk 0:00:42.1]} 41. Ra7 {[%clk 0:02:18.1]} 41... Kg6 {[%clk 0:00:42.3]} 42.
Kc2 {[%clk 0:02:17.7]} 42... Rd3 {[%clk 0:00:34.6]} 43. Rd7 {[%clk 0:01:21.4]}
43... Rxd4 {[%clk 0:00:33.8]} 44. g3 {[%clk 0:01:22.8]} 44... Rc4+ {[%clk
0:00:33.6]} 45. Kd2 {[%clk 0:01:24.2]} 45... Rxc5 {[%clk 0:00:34.7]} 46. Rd6+
{[%clk 0:01:20.9]} 46... f6 {[%clk 0:00:32.4]} 47. Bd1 {[%clk 0:01:17.6]} 47...
Kf5 {[%clk 0:00:21.7]} 48. Rd7 {[%clk 0:01:00.2]} 48... g5 {[%clk 0:00:22.5]}
49. fxg5 {[%clk 0:01:00.1]} 49... hxg5 {[%clk 0:00:23.1]} 50. Rd6 {[%clk
0:00:59.9]} 50... Ke5 {[%clk 0:00:23.8]} 51. Rd8 {[%clk 0:00:59.9]} 51... Rc4
{[%clk 0:00:24]} 52. Re8+ {[%clk 0:01:01]} 52... Kd6 {[%clk 0:00:24.3]} 53. Rf8
{[%clk 0:01:02.1]} 53... Rd4+ {[%clk 0:00:24.8]} 54. Ke1 {[%clk 0:01:03.1]}
54... Re4+ {[%clk 0:00:25.4]} 55. Kd2 {[%clk 0:01:04.5]} 55... Ke7 {[%clk
0:00:26.5]} 56. Rh8 {[%clk 0:01:03.8]} 56... c5 {[%clk 0:00:26.7]} 57. Bf3
{[%clk 0:01:03.7]} 57... Rd4+ {[%clk 0:00:27.1]} 58. Kc2 {[%clk 0:01:03.4]}
58... Bc4 {[%clk 0:00:26.3]} 59. Bh5 {[%clk 0:01:01.9]} 59... Rd3 {[%clk
0:00:18.4]} 60. g4 {[%clk 0:01:02.7]} 60... Rg3 {[%clk 0:00:19.4]} 61. Re8+
{[%clk 0:01:04.1]} 61... Kd6 {[%clk 0:00:20.5]} 62. Rf8 {[%clk 0:01:05.7]} 62...
Ke5 {[%clk 0:00:21.6]} 63. Re8+ {[%clk 0:01:07.2]} 63... Kd4 {[%clk 0:00:22.8]}
64. Rf8 {[%clk 0:01:08.7]} 64... Rg2+ {[%clk 0:00:23.9]} 65. Kd1 {[%clk
0:01:08.3]} 65... Kc3 {[%clk 0:00:24]} 66. Ke1 {[%clk 0:01:07.9]} 66... d4
{[%clk 0:00:24.4]} 67. Rxf6 {[%clk 0:01:07.8]} 67... Rg1+ {[%clk 0:00:25.5]} 0-1

[Event "*** Titled Tuesday 3|2 Blitz"]
[Site "Chess.com"]
[Date "2015.10.06"]
[Round "5"]
[White "dpopadic"]
[Black "Rickstereo"]
[Result "0-1"]
[WhiteElo "2209"]
[BlackElo "2087"]
[TimeControl "180+2"]
[EndTime "12:04:24 PDT"]
[Termination "Rickstereo won by resignation"]

1. e4 {[%clk 0:03:01.9]} 1... c5 {[%clk 0:02:57.1]} 2. Nc3 {[%clk 0:03:02.3]}
2... Nc6 {[%clk 0:02:57.2]} 3. f4 {[%clk 0:03:03.2]} 3... g6 {[%clk 0:02:57.1]}
4. Nf3 {[%clk 0:03:04.3]} 4... Bg7 {[%clk 0:02:58]} 5. Bc4 {[%clk 0:03:04.3]}
5... e6 {[%clk 0:02:59]} 6. f5 {[%clk 0:03:05.4]} 6... Nge7 {[%clk 0:02:56.2]}
7. fxe6 {[%clk 0:03:06.3]} 7... fxe6 {[%clk 0:02:55.2]} 8. d3 {[%clk 0:03:07.4]}
8... O-O {[%clk 0:02:56.2]} 9. O-O {[%clk 0:03:07.7]} 9... d5 {[%clk 0:02:23.1]}
10. Bb3 {[%clk 0:03:06.6]} 10... Qd6 {[%clk 0:01:59.1]} 11. Bg5 {[%clk
0:03:00.1]} 11... Bd7 {[%clk 0:01:56.6]} 12. Qd2 {[%clk 0:03:00.4]} 12... Rae8
{[%clk 0:01:37.4]} 13. Rae1 {[%clk 0:02:57.6]} 13... a6 {[%clk 0:01:31.6]} 14.
a4 {[%clk 0:02:55.9]} 14... Rf7 {[%clk 0:00:35.6]} 15. Bh6 {[%clk 0:02:45.5]}
15... Nd4 {[%clk 0:00:29.4]} 16. Bxg7 {[%clk 0:02:33.9]} 16... Nxf3+ {[%clk
0:00:29]} 17. Rxf3 {[%clk 0:02:33.4]} 17... Rxf3 {[%clk 0:00:26.4]} 18. e5
{[%clk 0:02:21.8]} 18... Qb6 {[%clk 0:00:18.6]} 19. a5 {[%clk 0:02:22.1]} 19...
Qa7 {[%clk 0:00:18.9]} 20. Bf6 {[%clk 0:02:21.3]} 20... c4+ {[%clk 0:00:17.6]}
21. Kh1 {[%clk 0:02:12.7]} 21... Rf2 {[%clk 0:00:17.6]} 22. Qg5 {[%clk
0:02:03.2]} 22... cxb3 {[%clk 0:00:15.8]} 23. Bxe7 {[%clk 0:02:01.3]} 23... bxc2
{[%clk 0:00:15.2]} 24. Bf6 {[%clk 0:02:00.7]} 24... b6 {[%clk 0:00:11.2]} 25.
Qh6 {[%clk 0:02:01.1]} 25... Bb5 {[%clk 0:00:09.8]} 26. axb6 {[%clk 0:02:00.9]}
26... Qf7 {[%clk 0:00:10.7]} 27. Kg1 {[%clk 0:01:53.4]} 27... Rxf6 {[%clk
0:00:08.8]} 28. exf6 {[%clk 0:01:53.8]} 28... Qxf6 {[%clk 0:00:09.9]} 29. Qd2
{[%clk 0:01:48.3]} 29... Qd4+ {[%clk 0:00:10]} 30. Kh1 {[%clk 0:01:44.2]} 30...
Bxd3 {[%clk 0:00:10.9]} 31. b7 {[%clk 0:01:41.9]} 31... Rf8 {[%clk 0:00:11.3]}
32. h3 {[%clk 0:01:39.7]} 32... Qc4 {[%clk 0:00:11.6]} 33. Qe3 {[%clk 0:01:32]}
33... Bf5 {[%clk 0:00:12.2]} 34. Qb6 {[%clk 0:01:18.7]} 34... Qf4 {[%clk
0:00:11.4]} 35. Ne2 {[%clk 0:01:11.9]} 35... Qe5 {[%clk 0:00:11]} 36. Rc1 {[%clk
0:01:05.6]} 36... Kg7 {[%clk 0:00:07.8]} 37. Nd4 {[%clk 0:01:04.6]} 37... Kh6
{[%clk 0:00:08.1]} 38. Nf3 {[%clk 0:00:50.6]} 38... Qf4 {[%clk 0:00:08]} 39. Qg1
{[%clk 0:00:37.4]} 39... Rb8 {[%clk 0:00:07.5]} 40. Qe1 {[%clk 0:00:11.1]} 40...
Rxb7 {[%clk 0:00:08]} 41. b4 {[%clk 0:00:11.1]} 41... Rc7 {[%clk 0:00:08.2]} 42.
Kg1 {[%clk 0:00:11.1]} 42... Rc4 {[%clk 0:00:07.7]} 43. Kf2 {[%clk 0:00:08.9]}
43... Re4 {[%clk 0:00:08.8]} 44. Qd2 {[%clk 0:00:08.9]} 44... Qxd2+ {[%clk
0:00:07.8]} 45. Nxd2 {[%clk 0:00:10.1]} 45... Rxb4 {[%clk 0:00:09.2]} 46. Ke3
{[%clk 0:00:10.7]} 46... a5 {[%clk 0:00:09.7]} 47. g4 {[%clk 0:00:11.7]} 47...
Be4 {[%clk 0:00:09.9]} 48. Nxe4 {[%clk 0:00:12.4]} 48... Rxe4+ {[%clk
0:00:11.6]} 49. Kd3 {[%clk 0:00:12.8]} 49... Rc4 {[%clk 0:00:13.3]} 50. h4
{[%clk 0:00:13.9]} 50... Kg7 {[%clk 0:00:13.6]} 51. Kd2 {[%clk 0:00:11.9]} 51...
a4 {[%clk 0:00:14.8]} 52. g5 {[%clk 0:00:10]} 52... a3 {[%clk 0:00:15.9]} 53.
Ke2 {[%clk 0:00:11.1]} 53... a2 {[%clk 0:00:17.1]} 54. Kd2 {[%clk 0:00:12.3]}
54... Kg8 {[%clk 0:00:18.1]} 55. h5 {[%clk 0:00:10.4]} 55... gxh5 {[%clk
0:00:18.5]} 56. g6 {[%clk 0:00:11.6]} 56... hxg6 {[%clk 0:00:19.6]} 57. Rg1
{[%clk 0:00:11.6]} 57... c1=Q+ {[%clk 0:00:20.3]} 0-1

[Event "*** Titled Tuesday 3|2 Blitz"]
[Site "Chess.com"]
[Date "2015.10.06"]
[Round "5"]
[White "FairChess_on_YouTube"]
[Black "Dlugy"]
[Result "1/2-1/2"]
[WhiteElo "2710"]
[BlackElo "2563"]
[TimeControl "180+2"]
[EndTime "12:04:40 PDT"]
[Termination "Game drawn - insufficient material"]

1. e4 {[%clk 0:03:01.9]} 1... c5 {[%clk 0:02:58.7]} 2. Nf3 {[%clk 0:03:02.8]}
2... d6 {[%clk 0:03:00]} 3. d4 {[%clk 0:03:03.9]} 3... cxd4 {[%clk 0:03:01]} 4.
Nxd4 {[%clk 0:03:05.6]} 4... Nf6 {[%clk 0:03:02.6]} 5. Nc3 {[%clk 0:03:06.8]}
5... Nc6 {[%clk 0:03:04.3]} 6. h3 {[%clk 0:03:05]} 6... e5 {[%clk 0:03:04.8]} 7.
Nf3 {[%clk 0:03:05]} 7... Be7 {[%clk 0:03:05]} 8. Bc4 {[%clk 0:03:05.2]} 8...
O-O {[%clk 0:03:05.1]} 9. Bg5 {[%clk 0:03:05.4]} 9... Na5 {[%clk 0:03:03.5]} 10.
Bb3 {[%clk 0:02:56.9]} 10... Be6 {[%clk 0:02:52]} 11. Bxf6 {[%clk 0:02:54]}
11... Bxf6 {[%clk 0:02:53.1]} 12. O-O {[%clk 0:02:55.4]} 12... g6 {[%clk
0:02:38.2]} 13. Qd3 {[%clk 0:02:54.1]} 13... Nxb3 {[%clk 0:02:28.6]} 14. axb3
{[%clk 0:02:55]} 14... Qd7 {[%clk 0:02:14.8]} 15. Rfd1 {[%clk 0:02:54.5]} 15...
Rfd8 {[%clk 0:02:15.9]} 16. Nd5 {[%clk 0:02:51.9]} 16... Bg7 {[%clk 0:02:16.2]}
17. c4 {[%clk 0:02:53]} 17... h6 {[%clk 0:02:13]} 18. Qe3 {[%clk 0:02:50.4]}
18... b6 {[%clk 0:02:09.9]} 19. b4 {[%clk 0:02:43.3]} 19... Kh7 {[%clk
0:02:07.7]} 20. b5 {[%clk 0:02:42.9]} 20... f5 {[%clk 0:02:06.8]} 21. b3 {[%clk
0:02:42.6]} 21... Rf8 {[%clk 0:02:06.9]} 22. Nb4 {[%clk 0:02:38.4]} 22... Qc7
{[%clk 0:01:47.3]} 23. Qd3 {[%clk 0:02:27.1]} 23... fxe4 {[%clk 0:01:34.7]} 24.
Qxe4 {[%clk 0:02:27.7]} 24... Bf5 {[%clk 0:01:35.9]} 25. Qc6 {[%clk 0:02:25.4]}
25... Qf7 {[%clk 0:01:26.8]} 26. Rxd6 {[%clk 0:02:22.2]} 26... e4 {[%clk
0:01:17.3]} 27. Nd4 {[%clk 0:02:19.6]} 27... Bxh3 {[%clk 0:01:16.7]} 28. Ra2
{[%clk 0:02:15.8]} 28... e3 {[%clk 0:01:00.3]} 29. gxh3 {[%clk 0:02:02.1]} 29...
exf2+ {[%clk 0:01:00]} 30. Kf1 {[%clk 0:02:03.4]} 30... Qf4 {[%clk 0:00:46.6]}
31. Nd3 {[%clk 0:01:19.5]} 31... Qe3 {[%clk 0:00:38.3]} 32. Nxf2 {[%clk
0:00:58.8]} 32... Bxd4 {[%clk 0:00:39.2]} 33. Qd7+ {[%clk 0:00:43.5]} 33... Bg7
{[%clk 0:00:40.3]} 34. Qg4 {[%clk 0:00:37.6]} 34... Qxb3 {[%clk 0:00:26.6]} 35.
Re2 {[%clk 0:00:33.6]} 35... Qb1+ {[%clk 0:00:26.8]} 36. Kg2 {[%clk 0:00:34.6]}
36... h5 {[%clk 0:00:27.2]} 37. Qe4 {[%clk 0:00:33.5]} 37... Qxe4+ {[%clk
0:00:25.9]} 38. Nxe4 {[%clk 0:00:35]} 38... Rae8 {[%clk 0:00:25.2]} 39. Ng5+
{[%clk 0:00:32.2]} 39... Kh6 {[%clk 0:00:25.7]} 40. Nf7+ {[%clk 0:00:32.2]}
40... Kh7 {[%clk 0:00:26.6]} 41. Ng5+ {[%clk 0:00:20.2]} 41... Kh6 {[%clk
0:00:28.2]} 42. Rxe8 {[%clk 0:00:18.1]} 42... Rxe8 {[%clk 0:00:29.5]} 43. h4
{[%clk 0:00:19.5]} 43... Rc8 {[%clk 0:00:27.5]} 44. Nf7+ {[%clk 0:00:16.4]}
44... Kh7 {[%clk 0:00:28.9]} 45. Ng5+ {[%clk 0:00:18]} 45... Kh6 {[%clk
0:00:30.4]} 46. Rc6 {[%clk 0:00:18]} 46... Re8 {[%clk 0:00:28.3]} 47. Rc7 {[%clk
0:00:18.8]} 47... Ra8 {[%clk 0:00:26.9]} 48. Kf3 {[%clk 0:00:19]} 48... a5
{[%clk 0:00:27.5]} 49. bxa6 {[%clk 0:00:20.3]} 49... Rxa6 {[%clk 0:00:28.7]} 50.
Nf7+ {[%clk 0:00:22]} 50... Kh7 {[%clk 0:00:29.6]} 51. Ng5+ {[%clk 0:00:23.7]}
51... Kh6 {[%clk 0:00:31.1]} 52. Ke4 {[%clk 0:00:24.8]} 52... Ra4 {[%clk
0:00:31]} 53. Kd5 {[%clk 0:00:25.9]} 53... Ra1 {[%clk 0:00:29.6]} 54. Kc6 {[%clk
0:00:25.6]} 54... Rh1 {[%clk 0:00:30.2]} 55. Nf7+ {[%clk 0:00:25.8]} 55... Kh7
{[%clk 0:00:31.2]} 56. Ng5+ {[%clk 0:00:26.9]} 56... Kh6 {[%clk 0:00:32.1]} 57.
Nf3 {[%clk 0:00:19.7]} 57... Rh3 {[%clk 0:00:32.1]} 58. Rf7 {[%clk 0:00:20.8]}
58... g5 {[%clk 0:00:22.1]} 59. hxg5+ {[%clk 0:00:15.5]} 59... Kg6 {[%clk
0:00:23.5]} 60. Rf4 {[%clk 0:00:17.1]} 60... Rg3 {[%clk 0:00:21.6]} 61. Kxb6
{[%clk 0:00:17.1]} 61... Rg4 {[%clk 0:00:23]} 62. Rxg4 {[%clk 0:00:12.9]} 62...
hxg4 {[%clk 0:00:24.4]} 63. Ne1 {[%clk 0:00:12.4]} 63... g3 {[%clk 0:00:24.4]}
64. c5 {[%clk 0:00:13]} 64... Bd4 {[%clk 0:00:25.1]} 65. Kb5 {[%clk 0:00:13.1]}
65... Bxc5 {[%clk 0:00:25]} 66. Kxc5 {[%clk 0:00:14.4]} 66... Kxg5 {[%clk
0:00:26.9]} 67. Kd4 {[%clk 0:00:15.2]} 67... g2 {[%clk 0:00:28.4]} 68. Nxg2
{[%clk 0:00:15.9]} 1/2-1/2

[Event "*** Titled Tuesday 3|2 Blitz"]
[Site "Chess.com"]
[Date "2015.10.06"]
[Round "5"]
[White "stefanodinn"]
[Black "HubertKnott"]
[Result "1-0"]
[WhiteElo "2120"]
[BlackElo "2003"]
[TimeControl "180+2"]
[EndTime "12:04:42 PDT"]
[Termination "stefanodinn won on time"]

1. e4 {[%clk 0:03:01.9]} 1... e5 {[%clk 0:03:01]} 2. Nf3 {[%clk 0:03:02.5]} 2...
Nc6 {[%clk 0:03:02.1]} 3. Bb5 {[%clk 0:03:02.8]} 3... a6 {[%clk 0:03:03.2]} 4.
Ba4 {[%clk 0:02:59.5]} 4... Nf6 {[%clk 0:03:03.5]} 5. O-O {[%clk 0:03:00.3]}
5... Be7 {[%clk 0:03:04.7]} 6. Re1 {[%clk 0:03:00.9]} 6... b5 {[%clk 0:03:05.8]}
7. Bb3 {[%clk 0:03:01.9]} 7... d6 {[%clk 0:03:07.1]} 8. c3 {[%clk 0:03:02.3]}
8... O-O {[%clk 0:03:08]} 9. h3 {[%clk 0:03:02.9]} 9... Na5 {[%clk 0:03:09.1]}
10. Bc2 {[%clk 0:03:03.3]} 10... c5 {[%clk 0:03:10.1]} 11. d4 {[%clk 0:03:04.2]}
11... Qc7 {[%clk 0:03:11.3]} 12. Nbd2 {[%clk 0:03:02]} 12... Bd7 {[%clk
0:03:09.6]} 13. Nf1 {[%clk 0:02:55.4]} 13... g6 {[%clk 0:03:10.2]} 14. Bg5
{[%clk 0:02:34.6]} 14... Rfc8 {[%clk 0:03:09.5]} 15. Rc1 {[%clk 0:02:13.9]}
15... Nc6 {[%clk 0:02:55]} 16. Bb1 {[%clk 0:02:04.2]} 16... Kg7 {[%clk
0:02:50.4]} 17. Qd2 {[%clk 0:02:03.2]} 17... Ng8 {[%clk 0:02:50]} 18. h4 {[%clk
0:01:25]} 18... f6 {[%clk 0:02:29.9]} 19. Be3 {[%clk 0:01:21.6]} 19... Nd8
{[%clk 0:02:22.3]} 20. N3h2 {[%clk 0:01:11.4]} 20... Nf7 {[%clk 0:02:17.7]} 21.
f4 {[%clk 0:01:11.6]} 21... Be6 {[%clk 0:01:51]} 22. Nf3 {[%clk 0:00:58]} 22...
cxd4 {[%clk 0:01:17.2]} 23. cxd4 {[%clk 0:00:58]} 23... Qd8 {[%clk 0:01:14.6]}
24. Ng3 {[%clk 0:00:43.5]} 24... Rxc1 {[%clk 0:01:12.5]} 25. Rxc1 {[%clk
0:00:43.4]} 25... Rc8 {[%clk 0:01:13.2]} 26. Rf1 {[%clk 0:00:35.5]} 26... Qc7
{[%clk 0:01:06.9]} 27. h5 {[%clk 0:00:26.4]} 27... Bg4 {[%clk 0:00:47.2]} 28.
hxg6 {[%clk 0:00:27]} 28... hxg6 {[%clk 0:00:47.9]} 29. f5 {[%clk 0:00:22.2]}
29... Bxf3 {[%clk 0:00:17.9]} 30. Rxf3 {[%clk 0:00:21.4]} 30... g5 {[%clk
0:00:17.2]} 31. Rf1 {[%clk 0:00:18.7]} 31... Kf8 {[%clk 0:00:14.7]} 32. Qe2
{[%clk 0:00:16.9]} 32... Nfh6 {[%clk 0:00:08.6]} 33. d5 {[%clk 0:00:15.6]} 33...
Qd7 {[%clk 0:00:06.1]} 34. Nh1 {[%clk 0:00:10.8]} 34... Qe8 {[%clk 0:00:07]} 35.
Nf2 {[%clk 0:00:11.3]} 35... Qd7 {[%clk 0:00:06.7]} 36. Bd3 {[%clk 0:00:11.7]}
36... Ke8 {[%clk 0:00:07.5]} 37. Ng4 {[%clk 0:00:10.9]} 37... Nxg4 {[%clk
0:00:07.4]} 38. Qxg4 {[%clk 0:00:11.4]} 38... Bd8 {[%clk 0:00:07.4]} 39. Qh3
{[%clk 0:00:10.4]} 39... Qg7 {[%clk 0:00:08]} 40. Qh5+ {[%clk 0:00:10.8]} 40...
Qf7 {[%clk 0:00:08.2]} 41. Qh3 {[%clk 0:00:11.1]} 41... Qg7 {[%clk 0:00:09.2]}
42. Rd1 {[%clk 0:00:08.7]} 42... Kf8 {[%clk 0:00:09.7]} 43. Qh5 {[%clk
0:00:09.3]} 43... Qf7 {[%clk 0:00:10.1]} 44. Qg4 {[%clk 0:00:09]} 44... Nh6
{[%clk 0:00:09.9]} 45. Qh3 {[%clk 0:00:09.4]} 45... Kg7 {[%clk 0:00:09.9]} 46.
g3 {[%clk 0:00:08.9]} 46... Qg8 {[%clk 0:00:07]} 47. Kg2 {[%clk 0:00:09.6]}
47... Qh7 {[%clk 0:00:07.6]} 48. Rh1 {[%clk 0:00:09.8]} 48... Be7 {[%clk
0:00:07.8]} 49. Qh5 {[%clk 0:00:10.3]} 49... Rh8 {[%clk 0:00:07.7]} 50. Kf1
{[%clk 0:00:07.8]} 50... Ng8 {[%clk 0:00:08.4]} 51. Qxh7+ {[%clk 0:00:07.7]}
51... Rxh7 {[%clk 0:00:09.6]} 52. Rxh7+ {[%clk 0:00:08.8]} 52... Kxh7 {[%clk
0:00:11]} 53. Ke1 {[%clk 0:00:09.4]} 53... Bd8 {[%clk 0:00:11.5]} 54. Kd2 {[%clk
0:00:10.1]} 54... Ba5+ {[%clk 0:00:11.7]} 55. Kd1 {[%clk 0:00:09.9]} 55... Ne7
{[%clk 0:00:12.8]} 56. Bd2 {[%clk 0:00:10.2]} 56... Bxd2 {[%clk 0:00:11.9]} 57.
Kxd2 {[%clk 0:00:11]} 57... Kg7 {[%clk 0:00:10.4]} 58. Kc3 {[%clk 0:00:11.5]}
58... Ng8 {[%clk 0:00:09.7]} 59. g4 {[%clk 0:00:09.4]} 59... Ne7 {[%clk
0:00:05.4]} 60. Kb4 {[%clk 0:00:09.4]} 1-0